[Event "Late-Titled-Tuesday-Blitz-March-12-2024"]
[Site "Chess.com"]
[Date "2024.03.12"]
[Round "9"]
[White "vi_pranav"]
[Black "ChristopherYoo"]
[Result "1-0"]
[WhiteElo "3056"]
[BlackElo "3002"]
[TimeControl "180+1"]
[EndTime "15:42:28 PDT"]
[Termination "vi_pranav won by resignation"]

1. e4 {[%clk 0:03:00.9]} 1... c5 {[%clk 0:02:59.8]} 2. Nf3 {[%clk 0:03:00.9]}
2... e6 {[%clk 0:03:00.4]} 3. b3 {[%clk 0:03:01]} 3... b6 {[%clk 0:02:59.6]} 4.
Bb2 {[%clk 0:03:01.1]} 4... Bb7 {[%clk 0:03:00.1]} 5. Nc3 {[%clk 0:03:01.7]}
5... a6 {[%clk 0:03:00.7]} 6. d4 {[%clk 0:03:01.7]} 6... cxd4 {[%clk 0:03:00.9]}
7. Nxd4 {[%clk 0:03:02.6]} 7... Qc7 {[%clk 0:03:01.4]} 8. Qd2 {[%clk 0:03:01.2]}
8... Nf6 {[%clk 0:03:00.6]} 9. f3 {[%clk 0:03:00.5]} 9... b5 {[%clk 0:02:45.3]}
10. O-O-O {[%clk 0:02:56.6]} 10... Bb4 {[%clk 0:02:29.7]} 11. Kb1 {[%clk
0:02:52.3]} 11... Nc6 {[%clk 0:02:14.7]} 12. Nxc6 {[%clk 0:02:46.2]} 12... Qxc6
{[%clk 0:02:13.9]} 13. Qd4 {[%clk 0:02:28.3]} 13... Bc5 {[%clk 0:02:03.5]} 14.
Qd3 {[%clk 0:02:27.8]} 14... b4 {[%clk 0:01:47.7]} 15. Na4 {[%clk 0:02:18.3]}
15... Be7 {[%clk 0:01:46.1]} 16. g4 {[%clk 0:02:07.7]} 16... d5 {[%clk
0:01:43.3]} 17. exd5 {[%clk 0:01:47.6]} 17... Qxd5 {[%clk 0:01:31.1]} 18. Nb6
{[%clk 0:01:42.2]} 18... Qxf3 {[%clk 0:01:19]} 19. Nxa8 {[%clk 0:01:40.1]} 19...
Qxh1 {[%clk 0:00:47.2]} 20. Bxf6 {[%clk 0:01:36.3]} 20... gxf6 {[%clk
0:00:40.7]} 21. Qd7+ {[%clk 0:01:35.1]} 21... Kf8 {[%clk 0:00:40.4]} 22. Bxa6
{[%clk 0:01:35.6]} 22... Qxd1+ {[%clk 0:00:18]} 23. Qxd1 {[%clk 0:01:36.5]}
23... Bxa8 {[%clk 0:00:11.6]} 24. Qd7 {[%clk 0:01:35.2]} 24... f5 {[%clk
0:00:06.2]} 25. gxf5 {[%clk 0:01:13.3]} 25... Rg8 {[%clk 0:00:05.6]} 26. Qa7
{[%clk 0:01:01.7]} 26... Bd5 {[%clk 0:00:02.4]} 27. fxe6 {[%clk 0:00:43.4]}
27... fxe6 {[%clk 0:00:02.3]} 28. Bc4 {[%clk 0:00:38]} 28... Bxc4 {[%clk
0:00:02]} 29. bxc4 {[%clk 0:00:38.9]} 29... Rg4 {[%clk 0:00:02]} 30. c5 {[%clk
0:00:38.1]} 30... Rc4 {[%clk 0:00:01.8]} 31. c6 {[%clk 0:00:37]} 31... Bd6
{[%clk 0:00:01.6]} 32. Qd7 {[%clk 0:00:35.5]} 32... Bxh2 {[%clk 0:00:01.4]} 33.
Qxe6 {[%clk 0:00:33.7]} 33... Rc3 {[%clk 0:00:02.1]} 34. a3 {[%clk 0:00:29.6]}
34... Rxa3 {[%clk 0:00:01.5]} 35. c7 {[%clk 0:00:28.8]} 35... Bxc7 {[%clk
0:00:01.1]} 36. Qc8+ {[%clk 0:00:29.3]} 36... Kg7 {[%clk 0:00:01.9]} 37. Qxc7+
{[%clk 0:00:29.9]} 37... Kg6 {[%clk 0:00:02.4]} 38. Qb6+ {[%clk 0:00:30.4]}
38... Kg5 {[%clk 0:00:02.5]} 39. Qc5+ {[%clk 0:00:30.2]} 39... Kg6 {[%clk
0:00:02.6]} 40. Qxb4 {[%clk 0:00:30.8]} 40... Rh3 {[%clk 0:00:02.1]} 41. Qg4+
{[%clk 0:00:30.7]} 1-0

[Event "Late-Titled-Tuesday-Blitz-March-12-2024"]
[Site "Chess.com"]
[Date "2024.03.12"]
[Round "9"]
[White "Kostukov_Alex"]
[Black "cthake"]
[Result "1/2-1/2"]
[WhiteElo "2276"]
[BlackElo "1747"]
[TimeControl "180+1"]
[EndTime "15:42:28 PDT"]
[Termination "Game drawn by repetition"]

1. e4 {[%clk 0:02:54.6]} 1... c5 {[%clk 0:02:58.8]} 2. Nf3 {[%clk 0:02:54.6]}
2... Nc6 {[%clk 0:02:58.4]} 3. d4 {[%clk 0:02:55.1]} 3... cxd4 {[%clk 0:02:59]}
4. Nxd4 {[%clk 0:02:55.9]} 4... Nf6 {[%clk 0:02:59.1]} 5. Nc3 {[%clk 0:02:54.4]}
5... e5 {[%clk 0:02:59.2]} 6. Nb3 {[%clk 0:02:52.4]} 6... Bb4 {[%clk 0:02:57.5]}
7. Bd3 {[%clk 0:02:50.1]} 7... d5 {[%clk 0:02:55.8]} 8. exd5 {[%clk 0:02:48.7]}
8... Nxd5 {[%clk 0:02:53.9]} 9. O-O {[%clk 0:02:49.6]} 9... Nxc3 {[%clk
0:02:53]} 10. bxc3 {[%clk 0:02:49.8]} 10... Bxc3 {[%clk 0:02:52.8]} 11. Ba3
{[%clk 0:02:49]} 11... Bxa1 {[%clk 0:02:43.5]} 12. Qxa1 {[%clk 0:02:43.1]} 12...
Be6 {[%clk 0:02:40.3]} 13. Nc5 {[%clk 0:02:39.2]} 13... Qc8 {[%clk 0:02:16.5]}
14. Ne4 {[%clk 0:02:32.3]} 14... Qd7 {[%clk 0:01:54.2]} 15. Qb2 {[%clk
0:02:16.7]} 15... O-O-O {[%clk 0:01:24.7]} 16. Nc5 {[%clk 0:02:08.1]} 16... Qc7
{[%clk 0:01:19.6]} 17. Rb1 {[%clk 0:01:54.2]} 17... Na5 {[%clk 0:00:58.5]} 18.
Nxe6 {[%clk 0:01:45.2]} 18... fxe6 {[%clk 0:00:56.3]} 19. h3 {[%clk 0:01:31.5]}
19... Nc6 {[%clk 0:00:54.6]} 20. Bc5 {[%clk 0:01:19.5]} 20... Rd7 {[%clk
0:00:43.7]} 21. a4 {[%clk 0:01:07]} 21... a6 {[%clk 0:00:39.8]} 22. Bb6 {[%clk
0:00:59.9]} 22... Qd6 {[%clk 0:00:39.1]} 23. a5 {[%clk 0:00:58.6]} 23... Rf8
{[%clk 0:00:31.7]} 24. Qc3 {[%clk 0:00:54.1]} 24... Rff7 {[%clk 0:00:25.1]} 25.
Be4 {[%clk 0:00:49.6]} 25... Kb8 {[%clk 0:00:22.2]} 26. Kh2 {[%clk 0:00:45.7]}
26... g5 {[%clk 0:00:20.2]} 27. Rb3 {[%clk 0:00:43.2]} 27... h5 {[%clk
0:00:20.1]} 28. Qc4 {[%clk 0:00:42]} 28... g4 {[%clk 0:00:19.8]} 29. Rd3 {[%clk
0:00:38.5]} 29... Qe7 {[%clk 0:00:18.9]} 30. Bxc6 {[%clk 0:00:33.9]} 30... Rxd3
{[%clk 0:00:18.8]} 31. cxd3 {[%clk 0:00:30.8]} 31... bxc6 {[%clk 0:00:18.1]} 32.
Qxc6 {[%clk 0:00:31.7]} 32... Rf8 {[%clk 0:00:14.9]} 33. Bc5 {[%clk 0:00:29.2]}
33... Qd8 {[%clk 0:00:10.7]} 34. Bxf8 {[%clk 0:00:18.5]} 34... Qxf8 {[%clk
0:00:10.4]} 35. Qxe6 {[%clk 0:00:16.7]} 35... Qf4+ {[%clk 0:00:09.1]} 36. Kg1
{[%clk 0:00:14.6]} 36... Qc1+ {[%clk 0:00:09]} 37. Kh2 {[%clk 0:00:14.9]} 37...
Qf4+ {[%clk 0:00:09]} 38. Kg1 {[%clk 0:00:10.9]} 38... Qc1+ {[%clk 0:00:09]} 39.
Kh2 {[%clk 0:00:10.2]} 39... Qf4+ {[%clk 0:00:09.2]} 1/2-1/2

[Event "Late-Titled-Tuesday-Blitz-March-12-2024"]
[Site "Chess.com"]
[Date "2024.03.12"]
[Round "9"]
[White "Veleamater"]
[Black "Divljasvinja14"]
[Result "1-0"]
[WhiteElo "2334"]
[BlackElo "2468"]
[TimeControl "180+1"]
[EndTime "15:42:31 PDT"]
[Termination "Veleamater won on time"]

1. Nf3 {[%clk 0:03:00.9]} 1... Nf6 {[%clk 0:02:51.9]} 2. g3 {[%clk 0:03:01.3]}
2... g6 {[%clk 0:02:51.9]} 3. Bg2 {[%clk 0:03:01.8]} 3... Bg7 {[%clk 0:02:50.1]}
4. O-O {[%clk 0:03:02.7]} 4... d5 {[%clk 0:02:49.4]} 5. d3 {[%clk 0:03:03.3]}
5... O-O {[%clk 0:02:49]} 6. c4 {[%clk 0:03:03.6]} 6... c6 {[%clk 0:02:49.4]} 7.
Nc3 {[%clk 0:03:03.6]} 7... b6 {[%clk 0:02:49.1]} 8. e4 {[%clk 0:03:03]} 8...
Bb7 {[%clk 0:02:48]} 9. cxd5 {[%clk 0:02:55]} 9... cxd5 {[%clk 0:02:47.7]} 10.
e5 {[%clk 0:02:55.4]} 10... Ne8 {[%clk 0:02:40.3]} 11. d4 {[%clk 0:02:55.7]}
11... f6 {[%clk 0:02:39.3]} 12. Bf4 {[%clk 0:02:55.6]} 12... Nc6 {[%clk
0:02:38]} 13. Re1 {[%clk 0:02:53.3]} 13... g5 {[%clk 0:02:20.4]} 14. exf6 {[%clk
0:02:51.5]} 14... exf6 {[%clk 0:02:18.6]} 15. Be3 {[%clk 0:02:47.1]} 15... Ne7
{[%clk 0:02:14.2]} 16. Qb3 {[%clk 0:02:44.6]} 16... Nd6 {[%clk 0:02:11.9]} 17.
Rad1 {[%clk 0:02:37.5]} 17... Rc8 {[%clk 0:02:07.3]} 18. Nxg5 {[%clk 0:02:36.9]}
18... fxg5 {[%clk 0:01:57.8]} 19. Bxg5 {[%clk 0:02:37]} 19... Bf6 {[%clk
0:01:52.9]} 20. Bh6 {[%clk 0:02:29.9]} 20... Nc4 {[%clk 0:01:41.6]} 21. Bxf8
{[%clk 0:02:23.8]} 21... Kxf8 {[%clk 0:01:42.1]} 22. Re6 {[%clk 0:02:01.3]}
22... Rc6 {[%clk 0:01:35.8]} 23. Rde1 {[%clk 0:01:55.4]} 23... Rxe6 {[%clk
0:01:34.2]} 24. Rxe6 {[%clk 0:01:55.4]} 24... Kf7 {[%clk 0:01:35.1]} 25. Re2
{[%clk 0:01:48.2]} 25... Bxd4 {[%clk 0:01:30.8]} 26. Qc2 {[%clk 0:01:46.6]}
26... Kg7 {[%clk 0:00:52.4]} 27. Qd3 {[%clk 0:01:43.9]} 27... Bf6 {[%clk
0:00:47.6]} 28. b3 {[%clk 0:01:25.8]} 28... Ne5 {[%clk 0:00:44.9]} 29. Qd2
{[%clk 0:01:16.2]} 29... N5g6 {[%clk 0:00:42.2]} 30. h4 {[%clk 0:01:10.7]} 30...
h5 {[%clk 0:00:24.6]} 31. Bf3 {[%clk 0:01:03.9]} 31... Qc7 {[%clk 0:00:15.9]}
32. Nd1 {[%clk 0:01:01.7]} 32... Ba6 {[%clk 0:00:10.5]} 33. Re6 {[%clk
0:00:47.6]} 33... Qd7 {[%clk 0:00:08.5]} 34. Qe1 {[%clk 0:00:43]} 34... Bc8
{[%clk 0:00:08.1]} 35. Re2 {[%clk 0:00:36.8]} 35... Qf5 {[%clk 0:00:06.7]} 36.
Bg2 {[%clk 0:00:29.4]} 36... Ne5 {[%clk 0:00:06.5]} 37. Ne3 {[%clk 0:00:29.4]}
37... Nf3+ {[%clk 0:00:06.6]} 38. Bxf3 {[%clk 0:00:29.7]} 38... Qxf3 {[%clk
0:00:07.5]} 39. Ng2 {[%clk 0:00:21]} 39... Bh3 {[%clk 0:00:06.4]} 40. Rxe7+
{[%clk 0:00:20.1]} 1-0

[Event "Late-Titled-Tuesday-Blitz-March-12-2024"]
[Site "Chess.com"]
[Date "2024.03.12"]
[Round "9"]
[White "ZachHKL"]
[Black "zano2023"]
[Result "0-1"]
[WhiteElo "2138"]
[BlackElo "2214"]
[TimeControl "180+1"]
[EndTime "15:42:34 PDT"]
[Termination "zano2023 won by checkmate"]

1. c4 {[%clk 0:03:00.9]} 1... d6 {[%clk 0:02:52.7]} 2. g3 {[%clk 0:03:00]} 2...
e5 {[%clk 0:02:51.3]} 3. Bg2 {[%clk 0:02:58.8]} 3... Nf6 {[%clk 0:02:50]} 4. d3
{[%clk 0:02:58.1]} 4... Be7 {[%clk 0:02:49.6]} 5. Nc3 {[%clk 0:02:56.8]} 5...
O-O {[%clk 0:02:50.1]} 6. Nf3 {[%clk 0:02:56.7]} 6... Nbd7 {[%clk 0:02:49.7]} 7.
O-O {[%clk 0:02:57]} 7... Re8 {[%clk 0:02:50.2]} 8. d4 {[%clk 0:02:55.4]} 8...
c6 {[%clk 0:02:49]} 9. h3 {[%clk 0:02:52.2]} 9... Qc7 {[%clk 0:02:49.3]} 10. e4
{[%clk 0:02:48.1]} 10... Nf8 {[%clk 0:02:47]} 11. Be3 {[%clk 0:02:44.8]} 11...
Ng6 {[%clk 0:02:46.9]} 12. Rc1 {[%clk 0:02:39.4]} 12... Bd7 {[%clk 0:02:42.7]}
13. Kh1 {[%clk 0:02:31.6]} 13... Rad8 {[%clk 0:02:42.6]} 14. Qa4 {[%clk
0:02:29.4]} 14... b6 {[%clk 0:02:40.9]} 15. Qc2 {[%clk 0:02:25.5]} 15... Qc8
{[%clk 0:02:39.8]} 16. Kh2 {[%clk 0:02:20.2]} 16... h5 {[%clk 0:02:38]} 17. Rcd1
{[%clk 0:02:07.8]} 17... h4 {[%clk 0:02:36.4]} 18. Bg5 {[%clk 0:02:02.7]} 18...
hxg3+ {[%clk 0:02:34.4]} 19. fxg3 {[%clk 0:02:03.6]} 19... exd4 {[%clk
0:02:16.1]} 20. Nxd4 {[%clk 0:02:01.2]} 20... Ng4+ {[%clk 0:02:09.6]} 21. hxg4
{[%clk 0:02:01]} 21... Bxg5 {[%clk 0:02:10.3]} 22. Nf5 {[%clk 0:02:00.3]} 22...
Bxf5 {[%clk 0:02:04.6]} 23. Rxf5 {[%clk 0:01:56.3]} 23... Bf6 {[%clk 0:01:58.7]}
24. g5 {[%clk 0:01:48.3]} 24... Be5 {[%clk 0:01:58.5]} 25. Rdf1 {[%clk
0:01:48.3]} 25... Re7 {[%clk 0:01:56.2]} 26. Qe2 {[%clk 0:01:46.6]} 26... Rde8
{[%clk 0:01:55]} 27. Qh5 {[%clk 0:01:40]} 27... Qe6 {[%clk 0:01:44.8]} 28. Rh1
{[%clk 0:01:33.5]} 28... Qxc4 {[%clk 0:01:36.8]} 29. Rc1 {[%clk 0:01:04.5]}
29... Qd3 {[%clk 0:01:33.4]} 30. Qe2 {[%clk 0:00:45.3]} 30... Qxg3+ {[%clk
0:01:32.3]} 31. Kg1 {[%clk 0:00:44.2]} 31... Nf4 {[%clk 0:01:18.6]} 32. Qf3
{[%clk 0:00:37]} 32... Nxg2 {[%clk 0:00:46.4]} 33. Qxg3 {[%clk 0:00:36.1]} 33...
Bxg3 {[%clk 0:00:45.1]} 34. Kxg2 {[%clk 0:00:35.4]} 34... Be5 {[%clk 0:00:42.8]}
35. Rf3 {[%clk 0:00:33.9]} 35... Bxc3 {[%clk 0:00:42.3]} 36. Rfxc3 {[%clk
0:00:33.6]} 36... c5 {[%clk 0:00:42.8]} 37. Rh1 {[%clk 0:00:32.6]} 37... Rxe4
{[%clk 0:00:42.5]} 38. Rch3 {[%clk 0:00:32.8]} 38... Kf8 {[%clk 0:00:42.6]} 39.
Rh7 {[%clk 0:00:30.3]} 39... Rg4+ {[%clk 0:00:40.4]} 40. Kf3 {[%clk 0:00:30.3]}
40... Rxg5 {[%clk 0:00:39.1]} 41. Rh8+ {[%clk 0:00:30.6]} 41... Ke7 {[%clk
0:00:39.4]} 42. Kf4 {[%clk 0:00:25.1]} 42... Re5 {[%clk 0:00:39.6]} 43. R8h7
{[%clk 0:00:24.5]} 43... g5+ {[%clk 0:00:39.9]} 44. Kg4 {[%clk 0:00:24.8]} 44...
Ke6 {[%clk 0:00:38.5]} 45. Rf1 {[%clk 0:00:23.2]} 45... f6 {[%clk 0:00:34.3]}
46. Rxa7 {[%clk 0:00:23.7]} 46... Rh8 {[%clk 0:00:33.2]} 47. Ra3 {[%clk
0:00:20.6]} 47... Rh4+ {[%clk 0:00:32.6]} 48. Kg3 {[%clk 0:00:21.1]} 48... f5
{[%clk 0:00:31.9]} 49. Raf3 {[%clk 0:00:21]} 49... f4+ {[%clk 0:00:30.9]} 50.
Kg2 {[%clk 0:00:21.6]} 50... Re2+ {[%clk 0:00:30.8]} 51. Kg1 {[%clk 0:00:22.2]}
51... Rhh2 {[%clk 0:00:29.8]} 52. Rd1 {[%clk 0:00:21.8]} 52... Rhg2+ {[%clk
0:00:28]} 53. Kf1 {[%clk 0:00:21.9]} 53... Rxb2 {[%clk 0:00:26.6]} 54. Re1+
{[%clk 0:00:22.5]} 54... Kf5 {[%clk 0:00:26.5]} 55. Rh3 {[%clk 0:00:22.9]} 55...
Rbf2# {[%clk 0:00:25.7]} 0-1

[Event "Late-Titled-Tuesday-Blitz-March-12-2024"]
[Site "Chess.com"]
[Date "2024.03.12"]
[Round "9"]
[White "Bongcloudtransvestit"]
[Black "trriinu"]
[Result "0-1"]
[WhiteElo "2441"]
[BlackElo "2299"]
[TimeControl "180+1"]
[EndTime "15:42:38 PDT"]
[Termination "trriinu won on time"]

1. Nf3 {[%clk 0:03:00.4]} 1... g6 {[%clk 0:02:59.3]} 2. e4 {[%clk 0:02:56.4]}
2... Bg7 {[%clk 0:02:59.7]} 3. d3 {[%clk 0:02:54.2]} 3... d6 {[%clk 0:02:58]} 4.
Nc3 {[%clk 0:02:51.4]} 4... Nf6 {[%clk 0:02:58.2]} 5. Bg5 {[%clk 0:02:49.4]}
5... h6 {[%clk 0:02:57.2]} 6. Bh4 {[%clk 0:02:43.5]} 6... O-O {[%clk 0:02:57.2]}
7. h3 {[%clk 0:02:41.4]} 7... c5 {[%clk 0:02:54.7]} 8. Qd2 {[%clk 0:02:34.8]}
8... Kh7 {[%clk 0:02:34.2]} 9. g4 {[%clk 0:02:29.5]} 9... Nc6 {[%clk 0:02:26]}
10. g5 {[%clk 0:02:18.6]} 10... Nh5 {[%clk 0:02:25.7]} 11. gxh6 {[%clk
0:02:14.7]} 11... Bxh6 {[%clk 0:02:25.8]} 12. Bg5 {[%clk 0:02:14.4]} 12... Bg7
{[%clk 0:02:18.3]} 13. Be3 {[%clk 0:02:10.5]} 13... b5 {[%clk 0:02:03.2]} 14.
Be2 {[%clk 0:01:58.1]} 14... Nf6 {[%clk 0:01:55.2]} 15. h4 {[%clk 0:01:54.7]}
15... b4 {[%clk 0:01:53.5]} 16. Nd1 {[%clk 0:01:52.1]} 16... Bg4 {[%clk
0:01:30.6]} 17. Rg1 {[%clk 0:01:04.3]} 17... Kg8 {[%clk 0:01:15.3]} 18. c3
{[%clk 0:00:47.7]} 18... Rb8 {[%clk 0:01:05.7]} 19. Bh6 {[%clk 0:00:41.8]} 19...
bxc3 {[%clk 0:01:03.5]} 20. bxc3 {[%clk 0:00:40.4]} 20... Qd7 {[%clk 0:00:53]}
21. Bxg7 {[%clk 0:00:39]} 21... Kxg7 {[%clk 0:00:53.9]} 22. Ne3 {[%clk 0:00:33]}
22... Rh8 {[%clk 0:00:42.5]} 23. Nxg4 {[%clk 0:00:16.8]} 23... Nxg4 {[%clk
0:00:42.4]} 24. Qg5 {[%clk 0:00:15.7]} 24... Nf6 {[%clk 0:00:24.3]} 25. d4
{[%clk 0:00:11.6]} 25... Nxe4 {[%clk 0:00:17.7]} 26. Qe3 {[%clk 0:00:11.2]}
26... Nf6 {[%clk 0:00:10.1]} 27. Rd1 {[%clk 0:00:06.4]} 27... Qc7 {[%clk
0:00:03.4]} 28. d5 {[%clk 0:00:02.4]} 28... Ne5 {[%clk 0:00:03.2]} 29. Nxe5
{[%clk 0:00:02.2]} 29... dxe5 {[%clk 0:00:03.7]} 0-1

[Event "Late-Titled-Tuesday-Blitz-March-12-2024"]
[Site "Chess.com"]
[Date "2024.03.12"]
[Round "9"]
[White "DonBroca"]
[Black "Ready4abattle"]
[Result "0-1"]
[WhiteElo "2239"]
[BlackElo "2404"]
[TimeControl "180+1"]
[EndTime "15:42:38 PDT"]
[Termination "Ready4abattle won by resignation"]

1. e4 {[%clk 0:03:00.9]} 1... c5 {[%clk 0:02:59.1]} 2. Nf3 {[%clk 0:02:58.6]}
2... Nc6 {[%clk 0:02:59.3]} 3. d4 {[%clk 0:02:59.4]} 3... cxd4 {[%clk
0:02:58.9]} 4. Nxd4 {[%clk 0:03:00.3]} 4... e5 {[%clk 0:02:59.3]} 5. Nxc6 {[%clk
0:02:59.1]} 5... bxc6 {[%clk 0:02:59.3]} 6. Nc3 {[%clk 0:02:59.2]} 6... Nf6
{[%clk 0:02:59.7]} 7. Bd2 {[%clk 0:02:58.9]} 7... Rb8 {[%clk 0:02:57.2]} 8. b3
{[%clk 0:02:57.7]} 8... Bb4 {[%clk 0:02:54.9]} 9. Bd3 {[%clk 0:02:52.6]} 9...
Qa5 {[%clk 0:02:46.7]} 10. Ne2 {[%clk 0:02:46.4]} 10... Ba6 {[%clk 0:02:38.6]}
11. a3 {[%clk 0:02:37.5]} 11... Bxd2+ {[%clk 0:02:34.5]} 12. Qxd2 {[%clk
0:02:38.4]} 12... Qxd2+ {[%clk 0:02:30.6]} 13. Kxd2 {[%clk 0:02:39.3]} 13...
Bxd3 {[%clk 0:02:28.7]} 14. Kxd3 {[%clk 0:02:33.4]} 14... d5 {[%clk 0:02:29.2]}
15. exd5 {[%clk 0:02:28.5]} 15... cxd5 {[%clk 0:02:29.2]} 16. Rhd1 {[%clk
0:02:20.8]} 16... Ke7 {[%clk 0:02:25.4]} 17. Ng3 {[%clk 0:01:59.1]} 17... g6
{[%clk 0:02:25.5]} 18. Ke2 {[%clk 0:01:54.6]} 18... Rhc8 {[%clk 0:02:24.6]} 19.
Rd2 {[%clk 0:01:54.4]} 19... h5 {[%clk 0:02:21.6]} 20. h4 {[%clk 0:01:51.8]}
20... Ke6 {[%clk 0:02:17.5]} 21. Rad1 {[%clk 0:01:34.4]} 21... Rc3 {[%clk
0:02:14.3]} 22. Rb1 {[%clk 0:01:25.3]} 22... Rbc8 {[%clk 0:02:11.5]} 23. Kd1
{[%clk 0:01:24.7]} 23... d4 {[%clk 0:01:38.3]} 24. Ne2 {[%clk 0:01:20.4]} 24...
R3c6 {[%clk 0:01:30.5]} 25. f3 {[%clk 0:01:12.4]} 25... Nd5 {[%clk 0:01:28.1]}
26. f4 {[%clk 0:00:48.5]} 26... Ne3+ {[%clk 0:01:22.4]} 27. Ke1 {[%clk
0:00:47.6]} 27... Nxc2+ {[%clk 0:01:13.4]} 28. Kf2 {[%clk 0:00:43.3]} 28... f6
{[%clk 0:00:58.4]} 29. a4 {[%clk 0:00:32.1]} 29... Ne3 {[%clk 0:00:54.2]} 30.
Kf3 {[%clk 0:00:25.9]} 30... Kd5 {[%clk 0:00:40.5]} 31. g3 {[%clk 0:00:19.4]}
31... Rc2 {[%clk 0:00:34.9]} 32. Rb2 {[%clk 0:00:18.1]} 32... Rxb2 {[%clk
0:00:28.5]} 33. Rxb2 {[%clk 0:00:18.3]} 33... e4+ {[%clk 0:00:27.8]} 34. Kf2
{[%clk 0:00:18.1]} 34... Ng4+ {[%clk 0:00:28.1]} 35. Ke1 {[%clk 0:00:18.1]}
35... d3 {[%clk 0:00:28.7]} 36. Ng1 {[%clk 0:00:17.2]} 36... e3 {[%clk
0:00:27.6]} 37. Rb1 {[%clk 0:00:16.6]} 37... Kd4 {[%clk 0:00:24.8]} 38. Nf3+
{[%clk 0:00:16.2]} 38... Ke4 {[%clk 0:00:24.9]} 39. Ng1 {[%clk 0:00:15.3]} 39...
Nf2 {[%clk 0:00:24.3]} 40. b4 {[%clk 0:00:14.5]} 40... d2+ {[%clk 0:00:24.3]}
41. Ke2 {[%clk 0:00:15]} 41... Rd8 {[%clk 0:00:20.9]} 42. Rd1 {[%clk 0:00:05.7]}
42... Nxd1 {[%clk 0:00:20.7]} 43. Kxd1 {[%clk 0:00:06.6]} 43... Kd3 {[%clk
0:00:19.1]} 44. Ne2 {[%clk 0:00:07.5]} 44... Rb8 {[%clk 0:00:18]} 45. b5 {[%clk
0:00:07.3]} 45... a6 {[%clk 0:00:18]} 46. Nc1+ {[%clk 0:00:04.5]} 46... dxc1=Q+
{[%clk 0:00:17.7]} 47. Kxc1 {[%clk 0:00:05.4]} 47... e2 {[%clk 0:00:17.1]} 0-1

[Event "Late-Titled-Tuesday-Blitz-March-12-2024"]
[Site "Chess.com"]
[Date "2024.03.12"]
[Round "9"]
[White "bazar-wokzal"]
[Black "DryCounty"]
[Result "1-0"]
[WhiteElo "2582"]
[BlackElo "2650"]
[TimeControl "180+1"]
[EndTime "15:42:39 PDT"]
[Termination "bazar-wokzal won on time"]

1. e4 {[%clk 0:03:00.9]} 1... e5 {[%clk 0:02:57.2]} 2. Bc4 {[%clk 0:03:00]} 2...
Nf6 {[%clk 0:02:55.8]} 3. d3 {[%clk 0:03:00.3]} 3... c6 {[%clk 0:02:55.4]} 4.
Nf3 {[%clk 0:03:00.4]} 4... d5 {[%clk 0:02:54.1]} 5. Bb3 {[%clk 0:03:00.9]} 5...
Bb4+ {[%clk 0:02:54.1]} 6. c3 {[%clk 0:03:00.7]} 6... Bd6 {[%clk 0:02:53.7]} 7.
Bg5 {[%clk 0:03:00.8]} 7... Be6 {[%clk 0:02:51.5]} 8. d4 {[%clk 0:03:00.8]} 8...
Nbd7 {[%clk 0:02:39.8]} 9. dxe5 {[%clk 0:02:59]} 9... Nxe5 {[%clk 0:02:38.8]}
10. exd5 {[%clk 0:02:53.3]} 10... cxd5 {[%clk 0:02:29.6]} 11. Nxe5 {[%clk
0:02:53.4]} 11... Bxe5 {[%clk 0:02:29]} 12. Nd2 {[%clk 0:02:53.7]} 12... h6
{[%clk 0:02:24.9]} 13. Bh4 {[%clk 0:02:53.4]} 13... O-O {[%clk 0:02:16.8]} 14.
Nf3 {[%clk 0:02:50.5]} 14... Qc7 {[%clk 0:02:04.9]} 15. Nxe5 {[%clk 0:02:28.8]}
15... Qxe5+ {[%clk 0:02:03.8]} 16. Qe2 {[%clk 0:02:29.3]} 16... Qxe2+ {[%clk
0:01:57.3]} 17. Kxe2 {[%clk 0:02:30.2]} 17... Ne4 {[%clk 0:01:53.5]} 18. f3
{[%clk 0:02:27.4]} 18... Nc5 {[%clk 0:01:49.4]} 19. Bc2 {[%clk 0:02:21.3]} 19...
Rfe8 {[%clk 0:01:44.7]} 20. Kd2 {[%clk 0:02:16.7]} 20... d4 {[%clk 0:01:37.5]}
21. cxd4 {[%clk 0:02:13.5]} 21... Na6 {[%clk 0:01:32.9]} 22. a3 {[%clk
0:02:07.7]} 22... Nc7 {[%clk 0:01:25.7]} 23. Be4 {[%clk 0:02:02.5]} 23... Bd5
{[%clk 0:01:22.1]} 24. Bg3 {[%clk 0:01:55.2]} 24... Bxe4 {[%clk 0:01:10]} 25.
fxe4 {[%clk 0:01:55]} 25... Ne6 {[%clk 0:01:10.2]} 26. Ke3 {[%clk 0:01:20.1]}
26... Rad8 {[%clk 0:01:07.4]} 27. Rhd1 {[%clk 0:01:15.7]} 27... f5 {[%clk
0:00:57.8]} 28. e5 {[%clk 0:01:12.9]} 28... Nc7 {[%clk 0:00:57.6]} 29. Rac1
{[%clk 0:01:10]} 29... Nd5+ {[%clk 0:00:57.2]} 30. Kf3 {[%clk 0:01:10.4]} 30...
Kf7 {[%clk 0:00:55.8]} 31. Rc5 {[%clk 0:01:03.2]} 31... Ke6 {[%clk 0:00:55.4]}
32. h4 {[%clk 0:01:01.3]} 32... Rc8 {[%clk 0:00:51.6]} 33. Rdc1 {[%clk 0:00:59]}
33... Rxc5 {[%clk 0:00:51.3]} 34. dxc5 {[%clk 0:00:56.6]} 34... Rc8 {[%clk
0:00:42.7]} 35. b4 {[%clk 0:00:55.8]} 35... a6 {[%clk 0:00:40.4]} 36. h5 {[%clk
0:00:52.9]} 36... b6 {[%clk 0:00:35.7]} 37. Bf2 {[%clk 0:00:43.9]} 37... a5
{[%clk 0:00:31.9]} 38. cxb6 {[%clk 0:00:29.7]} 38... Rxc1 {[%clk 0:00:21.1]} 39.
b7 {[%clk 0:00:29.8]} 39... Rc3+ {[%clk 0:00:21.2]} 40. Ke2 {[%clk 0:00:28.8]}
40... Nf4+ {[%clk 0:00:20.6]} 41. Ke1 {[%clk 0:00:24.3]} 41... Rxa3 {[%clk
0:00:02.6]} 42. b8=Q {[%clk 0:00:23.4]} 42... Ra1+ {[%clk 0:00:02.1]} 43. Kd2
{[%clk 0:00:22.9]} 43... Ra2+ {[%clk 0:00:02.3]} 44. Kd1 {[%clk 0:00:19.1]} 1-0